bitfinex/quotes_BTCUSD_20240818
["timestamp","ask_amount","ask_price","bid_price","bid_amount"]
[1724024548522,0.01947749,59000.0,58999.0,0.0009053]
[1724024548723,0.01042669,59000.0,58999.0,0.0009053]
[1724024548967,0.01242669,59000.0,58999.0,0.0009053]
[1724024549166,0.02886595,59000.0,58999.0,0.3568433]
[1724024549378,0.02886595,59000.0,58999.0,0.5941353]
[1724024549702,0.05677149,59000.0,58999.0,0.3568433]
[1724024549878,0.05677149,59000.0,58999.0,0.1195513]
[1724024550066,0.002823,59000.0,58999.0,0.1195513]
[1724024550391,0.004823,59000.0,58999.0,0.1195513]
[1724024550593,0.004823,59000.0,58999.0,0.3568433]
[1724024550996,0.000823,59000.0,58999.0,0.3568433]
[1724024551636,0.05377834,59000.0,58999.0,0.1195513]
[1724024552040,0.05077834,59000.0,58999.0,0.1195513]
[1724024552249,0.05177834,59000.0,58999.0,0.1285513]
[1724024554662,0.05177834,59000.0,58999.0,0.0099053]
[1724024555519,0.001823,59000.0,58999.0,1.69582825]
[1724024555720,0.001823,59000.0,58999.0,1.71982825]
[1724024555918,0.001823,59000.0,58999.0,1.95912025]
[1724024556142,0.001823,59000.0,58999.0,3.45912025]
[1724024556342,0.001823,59000.0,58999.0,3.45512025]
[1724024556542,0.000823,59000.0,58999.0,3.45412025]
[1724024556978,0.000823,59000.0,58999.0,3.45012025]
[1724024557417,0.001823,59000.0,58999.0,3.45812025]
[1724024558052,0.001823,59000.0,58999.0,1.95812025]
[1724024558489,0.002823,59000.0,58999.0,1.97212025]
[1724024558780,0.002823,59000.0,58999.0,2.20141225]
[1724024558781,0.001823,59000.0,58999.0,2.20141225]
[1724024559117,0.002823,59000.0,58999.0,2.21541225]
[1724024559351,0.002823,59000.0,58999.0,2.20141225]
[1724024559352,0.001823,59000.0,58999.0,2.20141225]
[1724024559543,0.001823,59000.0,58999.0,3.70141225]
[1724024559750,0.002823,59000.0,58999.0,2.21541225]
[1724024560177,0.000823,59000.0,58999.0,3.68741225]
[1724024560342,0.002823,59000.0,58999.0,3.47812025]
[1724024560722,0.002823,59000.0,58999.0,3.46412025]
[1724024561633,0.001823,59000.0,58999.0,3.45012025]
[1724024562149,0.003823,59000.0,58999.0,1.97117384]
[1724024562349,0.001823,59000.0,58999.0,1.96012025]
[1724024562764,0.001823,59000.0,58999.0,1.97212025]
[1724024562765,0.002823,59000.0,58999.0,1.97212025]
[1724024562973,0.001823,59000.0,58999.0,1.94612025]
[1724024563387,0.003823,59000.0,58999.0,1.97212025]
[1724024563649,0.001823,59000.0,58999.0,1.96012025]
[1724024563919,0.002823,59000.0,58999.0,1.97212025]
[1724024564135,0.002823,59000.0,58999.0,1.97412025]
[1724024569533,0.002823,59000.0,58999.0,1.97512025]
[1724024569731,0.002823,59000.0,58999.0,1.97612025]
[1724024570609,0.000823,59023.0,59007.0,0.237256]
[1724024570793,0.000823,59023.0,59022.0,0.906298]
[1724024570996,0.000823,59023.0,59022.0,1.66957595]
[1724024571334,0.000823,59023.0,59022.0,3.42977495]
[1724024571534,0.000823,59023.0,59022.0,1.68962954]
[1724024571743,0.000823,59023.0,59022.0,1.49575054]
[1724024571899,0.000823,59023.0,59022.0,1.50175054]
[1724024572104,0.001823,59023.0,59022.0,1.50175054]
[1724024572443,0.001823,59023.0,59022.0,1.50415845]
[1724024572444,0.000823,59023.0,59022.0,1.50415845]
[1724024572622,0.002823,59023.0,59022.0,1.53015845]
[1724024572825,0.002823,59023.0,59022.0,1.75535745]
[1724024573177,0.003823,59023.0,59022.0,1.53015845]
[1724024573676,0.003823,59023.0,59022.0,0.96460391]
[1724024573904,0.003823,59023.0,59022.0,0.956196]
[1724024574058,0.002823,59023.0,59022.0,0.942196]
[1724024574232,0.002823,59023.0,59022.0,0.956196]
[1724024574634,0.000823,59023.0,59022.0,0.944196]
[1724024574838,0.000823,59023.0,59022.0,0.930196]
[1724024575040,0.000823,59023.0,59022.0,0.720997]
[1724024575240,0.000823,59023.0,59022.0,0.706997]
[1724024575668,0.000823,59023.0,59022.0,0.720997]
[1724024575882,0.000823,59023.0,59022.0,0.706997]
[1724024576364,0.000823,59023.0,59022.0,0.692997]
[1724024576789,0.000823,59023.0,59022.0,0.232599]
[1724024577016,0.000823,59023.0,59022.0,0.469798]
[1724024577260,0.000823,59023.0,59022.0,0.383798]
[1724024577726,0.000823,59023.0,59022.0,0.132599]
[1724024577966,0.000823,59023.0,59022.0,0.125599]
[1724024578433,0.000823,59023.0,59022.0,0.368798]
[1724024578688,0.000823,59023.0,59022.0,0.362798]
[1724024578909,0.000823,59023.0,59022.0,0.371798]
[1724024579369,0.000823,59023.0,59022.0,0.134599]
[1724024580406,0.000823,59023.0,59022.0,0.364798]
[1724024580887,0.001823,59023.0,59022.0,0.372798]
[1724024581107,0.001823,59023.0,59022.0,0.363798]
[1724024581357,0.001823,59023.0,59022.0,0.372798]
[1724024581605,0.000823,59023.0,59022.0,0.601997]
[1724024581855,0.000823,59023.0,59022.0,0.364798]
[1724024582122,0.000823,59023.0,59016.0,0.3103953]
[1724024582123,0.372523,59023.0,59016.0,0.1083953]
[1724024582330,0.372523,59023.0,59005.0,0.00294641]
[1724024582331,0.1968,59021.0,59004.0,0.202]
[1724024582529,0.3717,59020.0,59013.0,0.118617]
[1724024582740,0.3717,59020.0,59005.0,0.17155454]
[1724024582741,0.3717,59020.0,59014.0,0.118615]
[1724024582976,0.54325454,59020.0,59005.0,0.237267]
[1724024583185,0.1968,59021.0,59006.0,0.237262]
[1724024583186,0.36835454,59019.0,59006.0,0.237262]
[1724024583398,0.118613,59015.0,59006.0,0.237262]
[1724024583608,0.3717,59014.0,59007.0,0.118629]
[1724024583810,0.3717,59014.0,59003.0,0.237275]
[1724024583811,0.3984,59012.0,59003.0,0.237275]
[1724024583994,0.3984,59012.0,59005.0,0.118633]
[1724024584323,0.3984,59012.0,59006.0,0.118631]
[1724024584523,0.118616,59014.0,58999.0,0.0009053]
[1724024584524,0.36635454,59011.0,58999.0,0.0009053]
[1724024584741,0.3697,59002.0,58999.0,0.0009053]
[1724024585457,0.1948,59001.0,58999.0,0.0009053]
[1724024587510,0.3829,59000.0,58999.0,0.0009053]
[1724024587747,0.738832,59000.0,58999.0,0.0009053]
[1724024588278,0.501544,59000.0,58999.0,0.0009053]
[1724024588521,0.738832,59000.0,58999.0,0.0009053]
[1724024589097,0.738832,59000.0,58999.0,0.0019053]
[1724024589098,0.501544,59000.0,58999.0,0.0019053]
[1724024589317,0.3829,59000.0,58999.0,0.0009053]
[1724024589578,0.3829,59000.0,58999.0,0.0019053]
[1724024589856,0.3829,59000.0,58999.0,0.0009053]
[1724024589857,0.501544,59000.0,58999.0,0.0009053]
[1724024590653,0.3829,59000.0,58999.0,0.0009053]
[1724024590881,0.501544,59000.0,58999.0,0.0009053]
[1724024591087,0.501544,59000.0,58999.0,0.0019053]
[1724024591498,0.738832,59000.0,58999.0,0.0019053]
[1724024591953,0.501544,59000.0,58999.0,0.0009053]
[1724024592168,0.501544,59000.0,58999.0,0.0019053]
[1724024592376,0.501544,59000.0,58999.0,0.0009053]
[1724024592797,0.501544,59000.0,58999.0,0.0019053]
[1724024594027,0.501544,59000.0,58999.0,0.0009053]
[1724024594232,0.501544,59000.0,58999.0,0.0019053]
[1724024594453,0.3829,59000.0,58999.0,0.0019053]
[1724024594630,0.3829,59000.0,58999.0,0.0009053]
[1724024594970,0.3829,59000.0,58999.0,0.0019053]
[1724024595192,0.3829,59000.0,58999.0,0.0009053]
[1724024595396,0.3829,59000.0,58999.0,0.0019053]
[1724024595800,0.3829,59000.0,58999.0,0.0009053]
[1724024596656,0.3948,59004.0,59001.0,0.118641]
[1724024596862,0.118626,59009.0,59001.0,0.118641]
[1724024597066,0.118631,59007.0,58999.0,0.1195493]
[1724024597211,0.118631,59007.0,58999.0,0.1205493]
[1724024597764,0.118631,59007.0,58999.0,0.0019053]
[1724024597961,0.118631,59007.0,58999.0,0.1195503]
[1724024598367,0.122631,59007.0,58999.0,0.1205503]
[1724024598572,0.004,59007.0,59002.0,0.118638]
[1724024598798,0.011,59007.0,59006.0,0.118632]
[1724024599624,0.011,59007.0,59004.0,0.237269]
[1724024599835,0.011,59007.0,59003.0,0.118637]
[1724024600251,0.007,59007.0,59003.0,0.118637]
[1724024600445,0.011,59007.0,59003.0,0.118637]
[1724024600863,0.007,59007.0,59003.0,0.118637]
[1724024601071,0.384,59011.0,59004.0,0.118635]
[1724024601500,0.006,59007.0,59004.0,0.118635]
[1724024601919,0.384,59011.0,59004.0,0.118635]
[1724024602129,0.39,59011.0,59004.0,0.118635]
[1724024602761,0.384,59011.0,59004.0,0.118635]
[1724024602966,0.001,59007.0,59004.0,0.118635]
[1724024604107,0.384,59011.0,59004.0,0.118635]
[1724024604556,0.39,59011.0,59004.0,0.118635]
[1724024604758,0.39,59011.0,58999.0,0.3647053]
[1724024604975,0.1183736,59007.0,58999.0,0.49187874]
[1724024605175,0.237248,59010.0,58999.0,0.49187874]
[1724024605176,0.118627,59009.0,59000.0,0.118643]
[1724024605402,0.118627,59009.0,59001.0,0.11864]
[1724024605738,0.118627,59009.0,58999.0,0.3647053]
[1724024605933,0.118627,59009.0,59001.0,0.118641]
[1724024606132,0.000823,59007.0,59001.0,0.118641]
[1724024607363,0.000823,59007.0,59002.0,0.118639]
[1724024607806,0.5526,59006.0,58999.0,0.0009053]
[1724024608208,0.118637,59004.0,58999.0,0.0009053]
[1724024608614,0.118639,59003.0,58999.0,0.0009053]
[1724024609556,0.118644,59000.0,58999.0,0.0009053]
[1724024609959,0.118644,59000.0,58999.0,0.0049053]
[1724024610140,0.479942,59001.0,58999.0,0.0049053]
[1724024610544,0.479942,59001.0,58999.0,0.0079053]
[1724024610779,0.479942,59001.0,58999.0,0.0039053]
[1724024611197,0.479942,59001.0,58999.0,0.0019053]
[1724024611404,0.480942,59001.0,58999.0,0.0009053]
[1724024612032,0.355932,59000.0,58999.0,0.0009053]
[1724024613083,0.60966846,59000.0,58999.0,0.0009053]
[1724024613317,0.60966846,59000.0,58999.0,0.0019053]
[1724024613318,1.20407215,59000.0,58999.0,0.0019053]
[1724024613852,1.61291469,59000.0,58999.0,0.0019053]
[1724024614130,1.61391469,59000.0,58999.0,0.0019053]
[1724024614369,1.61391469,59000.0,58999.0,1e-08]
[1724024614370,1.88444,59000.0,58999.0,1e-08]
[1724024614651,0.83155,58997.0,58996.0,0.0009053]
[1724024614887,1.83170974,58997.0,58996.0,0.0009053]
[1724024615146,1.98560012,58997.0,58996.0,0.0009053]
[1724024615397,1.87738927,58997.0,58996.0,0.0009053]
[1724024615872,1.92712969,58997.0,58996.0,0.0009053]
[1724024616106,1.89495187,58997.0,58996.0,0.0009053]
[1724024616334,1.95341316,58997.0,58996.0,0.0009053]
[1724024616833,1.96741316,58997.0,58996.0,0.0019053]
[1724024617309,1.89895187,58997.0,58996.0,0.0009053]
[1724024617552,1.93595187,58997.0,58996.0,0.0019053]
[1724024617801,1.413706,58993.0,58992.0,0.0009053]
[1724024618037,2.31663981,58993.0,58992.0,0.0009053]
[1724024618299,2.55395581,58993.0,58992.0,0.0009053]
[1724024618535,2.60366974,58993.0,58992.0,0.0009053]
[1724024618775,2.54995581,58993.0,58992.0,0.0009053]
[1724024619012,2.33272225,58993.0,58992.0,0.0009053]
[1724024619248,2.37839745,58993.0,58992.0,0.0009053]
[1724024619492,2.38039745,58993.0,58992.0,0.0009053]
[1724024619752,2.38239745,58993.0,58992.0,0.0019053]
[1724024620405,2.39639745,58993.0,58992.0,0.0019053]
[1724024620615,2.39139745,58993.0,58992.0,0.0009053]
[1724024620868,2.54895199,58993.0,58992.0,0.0009053]
[1724024621069,2.38239745,58993.0,58992.0,0.0019053]
[1724024621275,2.15908145,58993.0,58992.0,0.0009053]
[1724024621483,2.33063599,58993.0,58992.0,0.0009053]
[1724024621691,2.31663599,58993.0,58992.0,0.0009053]
[1724024622071,2.33063599,58993.0,58992.0,0.0009053]
[1724024622723,2.12984818,58993.0,58992.0,0.0009053]
[1724024622930,1.65521618,58993.0,58992.0,0.0009053]
[1724024623128,1.66021672,58993.0,58992.0,0.0019053]
[1724024623243,1.88353272,58993.0,58992.0,0.0019053]
[1724024623445,1.88753272,58993.0,58992.0,0.0019053]
[1724024623649,1.89253272,58993.0,58992.0,0.0029053]
[1724024623929,2.30240326,58993.0,58992.0,0.0029053]
[1724024624165,3.27252644,58993.0,58992.0,0.0009053]
[1724024624430,3.31352644,58993.0,58992.0,3e-07]
[1724024624669,1.307216,58978.0,58972.0,0.51177509]
[1724024624910,2.00935872,58978.0,58972.0,0.51177509]
[1724024625144,2.05612981,58978.0,58971.0,0.009264]
[1724024625379,2.31939136,58978.0,58971.0,0.009264]
[1724024625578,2.00735872,58978.0,58971.0,0.009264]
[1724024625798,2.22868207,58978.0,58971.0,0.009264]
[1724024626220,2.46605807,58978.0,58971.0,0.009264]
[1724024626422,2.22868207,58978.0,58971.0,0.009264]
[1724024626627,2.23768207,58978.0,58971.0,0.009264]
[1724024627094,2.19791326,58978.0,58977.0,0.29232737]
[1724024627512,2.00891761,58978.0,58977.0,0.29232737]
[1724024627713,1.6661781,58978.0,58977.0,0.29232737]
[1724024627917,1.61642525,58978.0,58977.0,0.29232737]
[1724024628121,1.61081818,58978.0,58977.0,0.29232737]
[1724024628358,1.17984218,58978.0,58977.0,0.29232737]
[1724024628568,0.90004218,58978.0,58977.0,0.29232737]
[1724024628793,1.13741818,58978.0,58977.0,0.29232737]
[1724024629239,0.90004218,58978.0,58977.0,0.29232737]
[1724024629938,0.66266618,58978.0,58977.0,0.29232737]
[1724024630146,0.52754,58978.0,58977.0,0.29232737]
[1724024630743,0.52754,58978.0,58977.0,0.56882737]
[1724024631238,0.52754,58978.0,58977.0,0.29232737]
[1724024631239,0.646228,58978.0,58977.0,0.29232737]
[1724024631401,0.883604,58978.0,58977.0,0.29232737]
[1724024631845,0.874604,58978.0,58977.0,0.29232737]
[1724024632557,1.40638,58978.0,58977.0,0.29232737]
[1724024632717,1.39638,58978.0,58977.0,0.29132737]
[1724024632915,1.75553454,58978.0,58977.0,0.29132737]
[1724024633091,2.23328654,58978.0,58977.0,0.29132737]
[1724024633306,2.42788728,58978.0,58977.0,0.29132737]
[1724024633582,2.47764368,58978.0,58977.0,0.29132737]
[1724024633792,2.47564368,58978.0,58977.0,0.29132737]
[1724024634027,2.75201968,58978.0,58977.0,0.29132737]
[1724024634247,2.83112417,58978.0,58977.0,0.29132737]
[1724024634456,3.14084552,58978.0,58977.0,0.29132737]
[1724024634662,3.26524174,58978.0,58977.0,0.29132737]
[1724024634887,3.21957683,58978.0,58977.0,0.29132737]
[1724024635108,3.25723983,58978.0,58977.0,0.29132737]
[1724024635336,3.13284881,58978.0,58977.0,0.29132737]
[1724024635998,3.12484881,58978.0,58977.0,0.29132737]
[1724024636225,3.23824508,58978.0,58977.0,0.29132737]
[1724024636443,3.24724508,58978.0,58977.0,0.29132737]
[1724024636868,3.23824508,58978.0,58977.0,0.29132737]
[1724024637311,2.68691827,58978.0,58977.0,0.29132737]
[1724024637538,2.31055711,58978.0,58977.0,0.29132737]
[1724024637741,2.38511919,58978.0,58977.0,0.29132737]
[1724024638156,1.90311919,58978.0,58977.0,0.29132737]
[1724024638356,2.3737589,58978.0,58977.0,0.29132737]
[1724024638568,2.54531344,58978.0,58977.0,0.29132737]
[1724024638775,2.49404287,58978.0,58977.0,0.29132737]
[1724024638980,2.54532778,58978.0,58977.0,0.29132737]
[1724024639389,2.54532503,58978.0,58977.0,0.29132737]
[1724024641123,2.49562324,58978.0,58977.0,0.29132737]
[1724024641782,2.52662182,58978.0,58977.0,0.29132737]
[1724024641992,2.52562182,58978.0,58977.0,0.29132737]
[1724024642208,2.54862182,58978.0,58977.0,0.29132737]
[1724024642437,2.55262182,58978.0,58977.0,0.29132737]
[1724024642872,2.51862182,58978.0,58977.0,0.29132737]
[1724024643299,2.32306728,58978.0,58977.0,0.29132737]
[1724024643509,2.12696728,58978.0,58977.0,0.29132737]
[1724024643965,1.88959128,58978.0,58977.0,0.29132737]
[1724024645265,2.12796728,58978.0,58977.0,0.29132737]
[1724024646541,2.12796728,58978.0,58977.0,0.48442737]
[1724024646542,0.87806336,58978.0,58977.0,0.48442737]
[1724024646952,1.11543936,58978.0,58977.0,0.48442737]
[1724024647160,1.08620734,58978.0,58977.0,0.48442737]
[1724024647587,1.29558334,58978.0,58977.0,0.48442737]
[1724024647792,1.30958334,58978.0,58977.0,0.48442737]
[1724024647996,1.18126286,58978.0,58977.0,0.48442737]
[1724024648205,1.59019307,58978.0,58977.0,0.29132737]
[1724024648417,2.44193186,58978.0,58977.0,0.29132737]
[1724024648625,2.67930786,58978.0,58977.0,0.29132737]
[1724024648849,2.49160657,58978.0,58977.0,0.29132737]
[1724024649074,2.55005993,58978.0,58977.0,0.29132737]
[1724024649281,2.48844393,58978.0,58977.0,0.29132737]
[1724024649483,2.50244393,58978.0,58977.0,0.29132737]
[1724024649695,2.48844393,58978.0,58977.0,0.29132737]
[1724024649904,2.49944393,58978.0,58977.0,0.29132737]
[1724024650121,2.51344393,58978.0,58977.0,0.29132737]
[1724024650342,2.52549386,58978.0,58977.0,0.29132737]
[1724024650565,2.78830786,58978.0,58977.0,0.29132737]
[1724024650788,2.80230786,58978.0,58977.0,0.29132737]
[1724024651045,4.07760786,58978.0,58977.0,0.29132737]
[1724024651255,4.53938868,58978.0,58977.0,0.29132737]
[1724024651901,4.37555776,58978.0,58977.0,0.18959137]
[1724024652317,4.28698386,58978.0,58977.0,0.18959137]
[1724024652783,4.6913527,58978.0,58977.0,0.18959137]
[1724024653199,4.7907687,58978.0,58977.0,0.18959137]
[1724024653612,4.7907687,58978.0,58947.0,0.12649915]
[1724024653613,0.831183,58952.0,58947.0,0.12649915]
[1724024653824,1.51627754,58952.0,58947.0,0.12649915]
[1724024654039,2.11423954,58952.0,58947.0,0.12649915]
[1724024654243,1.86819762,58952.0,58947.0,0.12649915]
[1724024654447,2.03875216,58952.0,58950.0,0.0092046]
[1724024654657,1.39342108,58951.0,58950.0,0.0074446]
[1724024654866,2.17476108,58951.0,58950.0,0.0074446]
[1724024655079,2.51787016,58951.0,58950.0,0.0074446]
[1724024655293,2.51787016,58951.0,58943.0,0.0108336]
[1724024655294,0.031,58945.0,58944.0,1e-06]
[1724024655507,0.84628762,58945.0,58944.0,1e-06]
[1724024655723,1.18379662,58945.0,58944.0,1e-06]
[1724024655940,1.44001436,58945.0,58944.0,1e-06]
[1724024656143,0.356269,58944.0,58943.0,0.0108336]
[1724024656350,1.05279891,58944.0,58943.0,0.0108336]
[1724024656558,0.81528591,58944.0,58943.0,0.0108336]
[1724024656767,0.69652991,58944.0,58943.0,0.0108336]
[1724024657180,0.81528591,58944.0,58943.0,0.0108336]
[1724024657383,1.05279891,58944.0,58943.0,0.0108336]
[1724024657584,0.70552991,58944.0,58943.0,0.0108336]
[1724024657788,0.82428591,58944.0,58943.0,0.0108336]
[1724024658206,0.80785054,58944.0,58943.0,0.0108336]
[1724024658422,1.04536354,58944.0,58943.0,0.0108336]
[1724024658655,1.1663336,58944.0,58943.0,0.0108336]
[1724024658942,1.04536354,58944.0,58943.0,0.0108336]
[1724024659136,0.81585054,58944.0,58943.0,0.0108336]
[1724024659342,0.81585054,58944.0,58943.0,0.0058336]
[1724024659343,0.68909454,58944.0,58943.0,0.0058336]
[1724024659553,0.51754,58944.0,58943.0,0.0058336]
[1724024659754,0.52454,58944.0,58943.0,0.0058336]
[1724024660466,0.51754,58944.0,58943.0,0.0058336]
[1724024660680,0.51754,58944.0,58943.0,0.1245916]
[1724024660888,0.52254,58944.0,58943.0,0.2850336]
[1724024661097,0.51354,58944.0,58943.0,0.2850336]
[1724024662173,0.50854,58944.0,58943.0,0.6413086]
[1724024663039,0.51654,58944.0,58943.0,0.6413086]
[1724024663298,0.51654,58944.0,58943.0,0.4037916]
[1724024663557,0.50854,58944.0,58943.0,0.2850336]
[1724024663797,0.50954,58944.0,58943.0,0.2850336]
[1724024664000,0.50854,58944.0,58943.0,0.6413086]
[1724024664206,0.50854,58944.0,58943.0,0.2850336]
[1724024665046,0.50854,58944.0,58943.0,0.4037916]
[1724024665255,0.50954,58944.0,58943.0,0.4037916]
[1724024665464,0.50854,58944.0,58943.0,0.4037916]
[1724024665885,0.50854,58944.0,58943.0,0.2850336]
[1724024666533,2.12628154,58944.0,58943.0,0.0058336]
[1724024666748,2.04280254,58944.0,58943.0,0.0058336]
[1724024666960,0.831323,58942.0,58941.0,0.009053]
[1724024667175,1.57757451,58942.0,58941.0,0.009053]
[1724024667799,2.13747568,58942.0,58941.0,0.009053]
[1724024668017,2.14147568,58942.0,58941.0,0.009053]
[1724024668234,2.4434185,58942.0,58941.0,0.009053]
[1724024668432,2.54287546,58942.0,58941.0,0.009053]
[1724024668839,2.53887546,58942.0,58941.0,0.009053]
[1724024669260,2.54287546,58942.0,58941.0,0.009053]
[1724024669463,2.54487546,58942.0,58941.0,0.009053]
[1724024669677,2.54887546,58942.0,58941.0,0.009053]
[1724024669912,2.54887546,58942.0,58933.0,0.009053]
[1724024669913,1.069916,58938.0,58933.0,0.009053]
[1724024670152,1.86644363,58938.0,58933.0,0.009053]
[1724024670357,1.91503399,58938.0,58933.0,0.009053]
[1724024670584,1.86544363,58938.0,58933.0,0.009053]
[1724024670810,1.94002859,58938.0,58933.0,0.009053]
[1724024671220,1.86544363,58938.0,58933.0,0.009053]
[1724024671676,1.87344363,58938.0,58933.0,0.009053]
[1724024672301,1.92315039,58938.0,58933.0,0.009053]
[1724024672504,1.51947354,58938.0,58933.0,0.009053]
[1724024672705,1.52847354,58938.0,58933.0,0.009053]
[1724024674595,1.29093654,58938.0,58933.0,0.009053]
[1724024675271,0.881845,58938.0,58933.0,0.009053]
[1724024675489,1.119382,58938.0,58933.0,0.009053]
[1724024676341,0.881845,58938.0,58933.0,0.009053]
[1724024677187,1.29093654,58938.0,58933.0,0.009053]
[1724024677391,1.81947354,58938.0,58933.0,0.009053]
[1724024677596,2.07744282,58938.0,58933.0,0.009053]
[1724024678062,2.07544282,58938.0,58933.0,0.009053]
[1724024678273,2.12313714,58938.0,58933.0,0.009053]
[1724024678500,1.36267372,58938.0,58933.0,0.009053]
[1724024678714,1.06983182,58938.0,58934.0,0.4881]
[1724024679126,1.05339954,58938.0,58934.0,0.4881]
[1724024679563,0.54197276,58938.0,58935.0,0.118774]
[1724024679784,0.52554,58938.0,58935.0,0.118774]
[1724024679995,0.52554,58938.0,58937.0,0.32185499]
[1724024680752,1.29093654,58938.0,58937.0,0.32185499]
[1724024681434,1.30736914,58938.0,58937.0,0.32185499]
[1724024682743,2.05341615,58938.0,58937.0,0.32185499]
[1724024683315,2.10311047,58938.0,58937.0,0.32185499]
[1724024683716,2.08106786,58938.0,58937.0,0.32185499]
[1724024683869,2.1031111,58938.0,58937.0,0.32185499]
[1724024684078,2.54520264,58938.0,58937.0,0.32185499]
[1724024684434,3.14853941,58938.0,58937.0,0.32185499]
[1724024684659,3.0243036,58938.0,58937.0,0.32185499]
[1724024684872,3.2618406,58938.0,58937.0,0.32185499]
[1724024685356,3.2618406,58938.0,58927.0,0.18027767]
[1724024685357,0.231,58928.0,58927.0,0.18027767]
[1724024685615,0.231,58928.0,58907.0,0.53100645]
[1724024685616,0.356487,58908.0,58907.0,0.53100645]
[1724024685826,1.102685,58908.0,58907.0,0.53100645]
[1724024686068,0.50854,58908.0,58907.0,0.01923136]
[1724024686266,0.865027,58908.0,58907.0,0.01923136]
[1724024686470,1.341343,58908.0,58907.0,0.01423136]
[1724024686677,1.3633839,58908.0,58907.0,0.01423136]
[1724024686883,1.6805839,58908.0,58907.0,0.01423136]
[1724024687106,1.6795839,58908.0,58907.0,0.01423136]
[1724024687319,1.67397099,58908.0,58907.0,0.01423136]
[1724024687528,1.67697099,58908.0,58907.0,0.01423136]
[1724024687774,1.12211299,58908.0,58907.0,0.01423136]
[1724024688287,1.12211215,58908.0,58907.0,0.01423136]
[1724024688497,1.64850263,58908.0,58907.0,0.01423136]
[1724024688710,1.64650263,58908.0,58907.0,0.01423136]
[1724024688920,1.65650263,58908.0,58907.0,0.01423136]
[1724024689121,1.66550263,58908.0,58907.0,0.01423136]
[1724024689324,1.98270263,58908.0,58907.0,0.01423136]
[1724024689549,2.10970263,58908.0,58907.0,0.01423136]
[1724024689753,0.69909454,58908.0,58907.0,0.20953136]
[1724024689954,0.81792354,58908.0,58907.0,0.20953136]
[1724024690336,0.81792354,58908.0,58907.0,0.20453136]
[1724024690465,0.69909454,58908.0,58907.0,0.20453136]
[1724024690913,0.69009454,58908.0,58907.0,0.20453136]
[1724024691305,0.69009454,58908.0,58907.0,1.40039326]
[1724024691306,0.26048806,58908.0,58907.0,1.40039326]
[1724024691572,0.24148806,58908.0,58907.0,1.43314836]
[1724024691802,0.24948806,58908.0,58907.0,1.43409477]
[1724024692021,0.25948806,58908.0,58907.0,1.60564931]
[1724024692254,0.25148806,58908.0,58907.0,1.60655571]
[1724024692478,0.24848806,58908.0,58907.0,1.19639276]
[1724024692729,0.24148806,58908.0,58907.0,1.19639276]
[1724024692984,0.24148806,58908.0,58907.0,0.72106876]
[1724024693190,0.24148806,58908.0,58907.0,1.19639276]
[1724024693410,0.24148806,58908.0,58907.0,0.83989976]
[1724024693614,0.24148806,58908.0,58907.0,0.95873076]
[1724024693615,0.24248806,58908.0,58907.0,0.95873076]
[1724024693822,0.24248806,58908.0,58907.0,0.01013776]
[1724024694431,0.24248806,58908.0,58907.0,0.36663076]
[1724024694646,0.24348806,58908.0,58907.0,0.36663076]
[1724024694858,0.24248806,58908.0,58907.0,0.36663076]
[1724024695257,0.24148806,58908.0,58907.0,0.36663076]
[1724024695466,0.24148806,58908.0,58907.0,0.60429276]
[1724024695677,0.24248806,58908.0,58907.0,0.60429276]
[1724024695886,0.24348806,58908.0,58907.0,0.60429276]
[1724024696090,0.24148806,58908.0,58907.0,0.60429276]
[1724024696312,0.24148806,58908.0,58907.0,1.33695476]
[1724024696313,0.24248806,58908.0,58907.0,1.33695476]
[1724024696513,0.24348806,58908.0,58907.0,1.33695476]
[1724024696915,0.24248806,58908.0,58907.0,1.33695476]
[1724024697340,0.24348806,58908.0,58907.0,1.33695476]
[1724024697544,0.24348806,58908.0,58907.0,1.6085093]
[1724024697743,0.24248806,58908.0,58907.0,3.1085093]
[1724024697947,0.24348806,58908.0,58907.0,3.1085093]
[1724024698350,0.24248806,58908.0,58907.0,2.93695476]
[1724024699038,0.24348806,58908.0,58907.0,2.93695476]
[1724024701298,0.24348806,58908.0,58907.0,2.93790117]
[1724024701836,0.24348806,58908.0,58907.0,2.93990117]
[1724024702038,0.24348806,58908.0,58907.0,2.93695476]
[1724024702702,0.24348806,58908.0,58907.0,0.01013776]
[1724024702964,0.59997506,58908.0,58907.0,0.01013776]
[1724024703174,0.24348806,58908.0,58906.0,0.15781759]
[1724024703606,0.24348806,58908.0,58907.0,0.118831]
[1724024703814,0.24348806,58908.0,58907.0,0.4962]
[1724024704024,0.24248806,58908.0,58906.0,0.15781759]
[1724024704239,0.24148806,58908.0,58906.0,0.15781759]
[1724024704452,0.24248806,58908.0,58906.0,0.15781759]
[1724024704665,0.118831,58907.0,58906.0,0.15781759]
[1724024705080,0.356493,58907.0,58906.0,0.15781759]
[1724024705498,0.594155,58907.0,58906.0,0.15781759]
[1724024705909,0.83564306,58907.0,58906.0,0.15781759]
[1724024706120,1.0071976,58907.0,58906.0,0.15781759]
[1724024706335,1.00678896,58907.0,58906.0,0.15781759]
[1724024706541,1.05744338,58907.0,58906.0,0.15781759]
[1724024706754,1.9752675,58907.0,58906.0,0.09076565]
[1724024706971,2.7739546,58907.0,58906.0,0.09076565]
[1724024707180,2.67625943,58907.0,58906.0,0.09076565]
[1724024707403,2.67725943,58907.0,58906.0,0.09076565]
[1724024707608,2.50570489,58907.0,58906.0,0.09076565]
[1724024708047,2.22204202,58907.0,58906.0,0.09076565]
[1724024708262,2.24704202,58907.0,58906.0,0.09076565]
[1724024708499,2.50970402,58907.0,58906.0,0.09076565]
[1724024708703,2.68825856,58907.0,58906.0,0.09076565]
[1724024708910,2.51270402,58907.0,58906.0,0.09076565]
[1724024709114,2.23004202,58907.0,58906.0,0.09076565]
[1724024709776,2.13004202,58907.0,58906.0,0.09076565]
[1724024710188,1.74767307,58907.0,58906.0,0.09076565]
[1724024710398,2.12443643,58907.0,58906.0,0.09076565]
[1724024712491,2.24865541,58907.0,58906.0,0.09076565]
[1724024713982,2.12443643,58907.0,58906.0,0.09076565]
[1724024714853,2.12443624,58907.0,58906.0,0.09076565]
[1724024715905,2.12443617,58907.0,58906.0,0.09076565]
[1724024716582,2.2237954,58907.0,58906.0,0.09076565]
[1724024716797,2.12443617,58907.0,58906.0,0.09076565]
[1724024717010,2.12443617,58907.0,58906.0,0.09167095]
[1724024717495,0.7758755,58907.0,58906.0,0.10083805]
[1724024717691,0.25848806,58907.0,58906.0,0.96493705]
[1724024717904,0.25848806,58907.0,58906.0,1.20354946]
[1724024718322,0.25848806,58907.0,58906.0,1.54321546]